[Event "ChessKid Cup Div-III 2023"]
[Site "Online"]
[Date "2023.05.23"]
[Round "3.2"]
[White "Pichot, Alan"]
[Black "Sevian, Samuel"]
[Result "1/2-1/2"]
[ECO "C77"]
[WhiteElo "2638"]
[BlackElo "2684"]
[Annotator "TA"]
[PlyCount "201"]
[EventDate "2023.05.21"]
[EventType "k.o."]
[EventCountry "NET"]
[SourceTitle "playchess.com"]
[Source "ChessBase"]
[SourceQuality "1"]
[TimeControl "900+3"]

{[%evp 16,201,33,27,12,7,11,14,25,0,45,32,31,17,24,20,28,16,27,4,8,-8,0,-31,-12,-14,0,0,0,0,0,-20,-19,-8,-20,-22,-16,-55,-26,-32,-25,-55,-52,-50,0,0,0,-12,0,0,0,0,0,0,0,-63,-68,-72,0,-6,0,-139,-128,-186,-186,-172,-54,-59,-64,-48,-65,-64,-75,-132,-125,-125,-120,-124,-125,-249,-119,-124,0,0,0,0,0,0,0,-16,-16,-16,-16,-163,-16,-20,-19,-36,0,0,0,0,0,0,0,-157,12841,12842,12842,12841,12850,27999,27999,27999,27999,27999,27999,27999,27999,27999,27999,27999,27999,27999,27999,27999,27999,27999,27999,27999,27999,27999,27999,0,0,0,0,0,0,0,0,0,0,0,0,0,0,0,0,0,0,0,0,0,0,0,0,0,0,0,0,0,0,0,0,0,27999,27999,27999,27999,27999,27999,27999,27999,27999,27999,27999,27999,27999,27999,27999,27999,27999,27999,27999,27999,27999,27999]} 1. e4 {[%emt 0:00:04]} e5 {[%emt 0:00:05]} 2. Nf3 {[%emt 0:00:03]} Nc6 {[%emt 0:00:01]} 3. Bb5 {[%emt 0:00:05]} a6 {[%emt 0:00:01]} 4. Ba4 {[%emt 0:00:03]} Nf6 {[%emt 0:00:01]} 5. d3 {[%emt 0:00:14]} d6 {[%emt 0:00:03]} 6. c3 {[%emt 0:00:06]} g6 {[%emt 0:00:02]} 7. O-O {[%emt 0:00:05]} Bg7 {[%emt 0:00:02]} 8. Re1 {[%emt 0:00:11]} O-O {[%emt 0:00:02]} 9. Nbd2 {[%emt 0:00:01]} h6 {[%emt 0:00:05] C77: Ruy Lopez: 3...a6 4 Ba4 Nf6, unusual lines.} 10. Nf1 {[%emt 0:00:19]} b5 {[%emt 0:00:08] 10...b5 has lost popularity.} 11. Bc2 {[%emt 0:00:10]} d5 {[%emt 0:00:01] The position is equal.} 12. a4 {[%emt 0:01:03] Threatens to win with axb5.} Bb7 {[%emt 0:00:02]} 13. Be3 {[%emt 0:01:06]} Re8 {[%emt 0:00:03] [#]} 14. h3 $146 {[%emt 0:00:09]} ({Predecessor:} 14. Qc1 Kh7 15. Ng3 Qd7 16. h3 dxe4 17. dxe4 Na5 18. b3 Bf8 19. Qb2 Qe6 20. Nd2 {0-1 Stehno,P (2373)-Biolek,R (2155) Pardubice op-C 2005 (4)}) 14... Nb8 {[%emt 0:01:55][%cal Rd5e4]} 15. Ng3 {[%emt 0:01:06]} Nbd7 {[%emt 0:00:02]} 16. axb5 {[%emt 0:01:17]} axb5 {[%emt 0:00:03]} 17. Rxa8 {[%emt 0:00:10]} (17. Qd2 $5 {[%cal Re3h6]}) 17... Qxa8 {[%emt 0:00:02]} 18. Qa1 {[%emt 0:00:07]} c5 {[%emt 0:00:05]} 19. Bd2 {[%emt 0:00:35]} Qxa1 {[%emt 0:03:04]} 20. Rxa1 {[%emt 0:00:05]} c4 {[%emt 0:00:00]} 21. Ra7 {[%emt 0:00:36]} Rb8 {[%emt 0:00:02]} 22. exd5 {[%emt 0:00:37]} Bxd5 {[%emt 0:00:02]} 23. d4 {[%emt 0:00:47]} Bxf3 $1 {[%emt 0:00:30]} 24. gxf3 {[%emt 0:00:03]} exd4 {[%emt 0:00:00]} 25. cxd4 {[%emt 0:00:02]} Nb6 {[%emt 0:00:01]} 26. Bf4 {[%emt 0:01:03]} Re8 {[%emt 0:00:02] And now ...Nfd5 would win.} 27. Be5 {[%emt 0:00:16]} b4 {[%emt 0:00:34]} 28. Rb7 {[%emt 0:00:23]} Nfd7 {[%emt 0:00:05]} 29. f4 {[%emt 0:00:37]} Bxe5 {[%emt 0:00:09]} (29... b3 $15 30. Be4 c3 31. bxc3 b2) 30. fxe5 $11 {[%emt 0:00:11]} Rb8 {[%emt 0:00:00]} 31. Ra7 {[%emt 0:00:48]} b3 {[%emt 0:00:38]} 32. Be4 {[%emt 0:00:22]} Nf8 {[%emt 0:00:08]} 33. Ne2 {[%emt 0:00:31]} Ne6 {[%emt 0:00:05]} 34. Kf1 {[%emt 0:00:32]} c3 {[%emt 0:02:48]} 35. bxc3 {[%emt 0:01:24]} (35. Nxc3 $11 Nxd4 36. Nd5) 35... Nc4 $1 $15 {[%emt 0:00:08]} 36. Ke1 {[%emt 0:00:03] Wards off Nd2} b2 {[%emt 0:00:01]} (36... Ng5 $1 $17 {[%cal Rg5e4]} 37. Bb1 (37. Bd3 $2 Nf3+ 38. Kf1 Ncd2+ 39. Kg2 Ne1+ 40. Kg3 Nxd3 $19) 37... Nf3+ 38. Kd1 b2) 37. Bb1 $11 {[%emt 0:00:02] Hoping for Ra4.} Rb3 {[%emt 0:00:00]} 38. d5 {[%emt 0:00:26]} (38. Kd1 $11 {keeps the balance.}) 38... Nc5 $17 {[%emt 0:00:21]} 39. f4 {[%emt 0:01:11]} (39. e6 $17 fxe6 40. dxe6 Nxe6 41. Kd1) 39... Na3 $19 {[%emt 0:00:09] A dynamic duo of knights.} 40. Ba2 {[%emt 0:00:02] [#]} b1=Q+ {[%emt 0:03:14]} ({Black should play} 40... Ne4 $1 $19 41. Nd4 (41. Bxb3 b1=Q+ 42. Bd1 Nc2+ 43. Kf1 Ne3+ 44. Kg1 Qxd1+ 45. Kh2 Qxe2+ 46. Kh1 Qg2#) (41. Ra8+ $2 Kg7 $19) 41... Rxc3) 41. Bxb1 $15 {[%emt 0:00:01]} Rxb1+ {[%emt 0:00:00]} 42. Kf2 {[%emt 0:00:00]} Nc2 {[%emt 0:00:00] ...Ne4+ would be deadly.} 43. d6 {[%emt 0:00:06]} Rd1 {[%emt 0:00:02]} 44. Rc7 {[%emt 0:00:04]} ({Better is} 44. Ng3) 44... Ne6 $17 {[%emt 0:00:01]} 45. Rc8+ {[%emt 0:00:02]} Kg7 {[%emt 0:00:01]} 46. c4 {[%emt 0:00:01] [#]} Nb4 $1 {[%emt 0:00:12]} (46... Rd2 47. Kf3 $15) 47. Kf3 {[%emt 0:00:06]} (47. Nc3 $17 Rd2+ 48. Ne2) 47... Nd3 {[%emt 0:01:28]} (47... Rd3+ $19 {and Black stays clearly on top.} 48. Kg2 Na6) 48. Nc3 {[%emt 0:00:01]} Rh1 {[%emt 0:00:08]} (48... Re1 $17 {...Nd4+ is the strong threat.} 49. d7 Nd4+ 50. Kg2 Nxf4+ 51. Kf2 Nd3+ 52. Kg2 Ne6) 49. Nd5 $1 $11 {[%emt 0:00:01]} Rxh3+ {[%emt 0:00:01]} 50. Ke2 {[%emt 0:00:11]} Nexf4+ {[%emt 0:00:14]} (50... g5 $5 51. d7 $8 gxf4 $11) 51. Kd2 {[%emt 0:00:01]} Rh2+ {[%emt 0:00:26]} 52. Ke3 {[%emt 0:00:01]} Nxd5+ {[%emt 0:00:01]} 53. Kxd3 {[%emt 0:00:01][%mdl 4096] Endgame KRN-KR} Nf4+ {[%emt 0:00:02]} 54. Ke4 {[%emt 0:00:02]} (54. Ke3 $1 $11 {and White is okay.} Ne6 55. c5) 54... Rh4 {[%emt 0:00:05]} ({Black should try} 54... Ne6 $19 {Strongly threatening ...g5.} 55. c5 Re2+ 56. Kd5 Rd2+ 57. Ke4 f5+ 58. Ke3 Rd5) 55. c5 {[%emt 0:00:01][%cal Bc4c5,Bc5c6][%mdl 32]} Ne6+ {[%emt 0:00:01]} 56. Kd3 {[%emt 0:00:02]} Rd4+ {[%emt 0:00:05]} (56... Rh5 $5 {[%cal Rh5e5]} 57. Ke4 f6 58. exf6+ Kxf6 $17) 57. Kc3 $1 {[%emt 0:00:00]} Rd5 {[%emt 0:00:08][%csl LRc5,LRe5]} 58. c6 {[%emt 0:00:08]} Rxe5 {[%emt 0:00:00] aiming for ...Rd5.} 59. d7 {[%emt 0:00:07]} Kf6 {[%emt 0:00:09]} 60. Kb4 {[%emt 0:00:00]} (60. c7 $11 Rc5+ 61. Kb4 Rxc7 62. Rxc7) 60... Rc5 $2 {[%emt 0:00:04]} (60... Rd5 $17 61. Re8 g5) 61. d8=Q+ $18 {[%emt 0:00:02][%mdl 64] Overworked Piece} (61. d8=B+ $2 Ke5 62. Bb6 Rc1 $19) 61... Nxd8 {[%emt 0:00:01]} 62. Kxc5 {[%emt 0:00:01]} Nxc6 {[%emt 0:00:00]} 63. Rxc6+ {[%emt 0:00:01] KR-K3P} (63. Kxc6 Ke5 $16) 63... Ke5 {[%emt 0:00:01]} 64. Rc7 {[%emt 0:00:04]} f5 {[%emt 0:00:01]} 65. Kc4 {[%emt 0:00:03]} g5 {[%emt 0:00:06]} 66. Kd3 {[%emt 0:00:01]} Kf4 {[%emt 0:00:06]} 67. Ke2 {[%emt 0:00:01]} h5 {[%emt 0:00:00]} 68. Kf2 {[%emt 0:00:01]} g4 {[%emt 0:00:02]} 69. Rh7 {[%emt 0:00:03]} Kg5 {[%emt 0:00:00]} 70. Rg7+ {[%emt 0:00:01]} Kf4 {[%emt 0:00:01]} 71. Kg2 {[%emt 0:00:08]} h4 {[%emt 0:00:01]} 72. Ra7 {[%emt 0:00:03]} h3+ {[%emt 0:00:01]} 73. Kh2 {[%emt 0:00:03]} Kg5 {[%emt 0:00:00]} 74. Ra4 {[%emt 0:00:04]} Kf6 {[%emt 0:00:00]} 75. Kg3 {[%emt 0:00:02]} Kg7 $2 {[%emt 0:00:01][%mdl 8192]} (75... Kg6 $11 76. Kf4 Kh7) 76. Kf4 $2 {[%emt 0:00:03][%mdl 8192]} (76. Ra6 $11 Kf7 77. Rh6) 76... Kf6 $2 {[%emt 0:00:01][%mdl 8192]} (76... Kg6 $11 77. Ra6+ Kg7 78. Ra7+ (78. Kxf5 h2 $11) 78... Kf6) 77. Ra6+ $2 {[%emt 0:00:01][%mdl 8192]} (77. Ra2 $11 Kg6 78. Ra6+ Kf7 79. Ra1 (79. Kxf5 h2 $11)) 77... Kg7 {[%emt 0:00:00]} 78. Ra2 $2 {[%emt 0:00:16][%mdl 8192]} (78. Kg3 $11 Kf7 79. Rh6) 78... Kf6 $2 {[%emt 0:00:01][%mdl 8192]} (78... Kg6 $11 79. Rf2 Kg7) 79. Rf2 $2 {[%emt 0:00:02][%mdl 8192]} (79. Ra6+ $11 Kg7 80. Ra1 (80. Kxf5 h2 $11)) 79... Kg6 {[%emt 0:00:02]} 80. Re2 $2 {[%emt 0:00:04][%mdl 8192]} (80. Kg3 $11 Kg5 81. Kh2) 80... Kf6 {[%emt 0:00:00]} 81. Re1 $2 {[%emt 0:00:03][%mdl 8192]} (81. Ra2 $11 Kg6 82. Ra6+ Kg7 83. Ra7+ (83. Kxf5 h2 $11) 83... Kh6 84. Ra8 (84. Kxf5 h2 $11)) 81... Kg6 {[%emt 0:00:01]} 82. Rh1 $2 {[%emt 0:00:03][%mdl 8192]} (82. Kg3 $11 Kf7 83. Re5) 82... Kf6 $1 {[%emt 0:00:01]} 83. Rh2 {[%emt 0:00:03]} Kg6 {[%emt 0:00:00]} 84. Ra2 $2 {[%emt 0:00:01][%mdl 8192]} (84. Kg3 $11 Kg5 85. Rf2) 84... Kf6 {[%emt 0:00:01]} 85. Ra8 $2 {[%emt 0:00:05][%mdl 8192]} (85. Ra6+ $11 Kg7 86. Kg3 (86. Kxf5 h2 $11)) 85... Kg7 $2 {[%emt 0:00:01][%mdl 8192]} (85... Kf7 $11 86. Kg3 (86. Kxf5 h2 $11) 86... Kg7) 86. Ra6 $2 {[%emt 0:00:05][%mdl 8192]} (86. Ra2 $11 Kf7 87. Rc2 (87. Kxf5 g3 $11)) 86... Kf7 $1 {[%emt 0:00:01]} 87. Rh6 {[%emt 0:00:01]} Kg7 {[%emt 0:00:02] Dodges Kxf5} 88. Rh5 $2 {[%emt 0:00:03][%mdl 8192]} (88. Rh4 $11 Kg6 89. Rh8) 88... Kg6 {[%emt 0:00:01]} 89. Rh4 $2 {[%emt 0:00:02][%mdl 8192]} (89. Rxf5 h2 90. Rg5+ (90. Kxg4 $2 {loses.} h1=Q $19) 90... Kh6 $19) (89. Rh8 $11 Kg7 90. Rd8) 89... Kf6 {[%emt 0:00:01]} 90. Kg3 $2 {[%emt 0:00:08][%mdl 8192]} (90. Rh6+ $11 Kg7 91. Rb6) 90... Kg5 $2 {[%emt 0:00:02][%mdl 8192]} (90... Ke6 $11 91. Rh6+ Kf7) 91. Rh8 {[%emt 0:00:01] White mates.} f4+ {[%emt 0:00:24]} 92. Kh2 {[%emt 0:00:01]} ({Stronger than} 92. Kf2 g3+ 93. Kg1 Kg4 $11) 92... Kf5 {[%emt 0:00:01]} 93. Re8 {[%emt 0:00:03]} Kg5 {[%emt 0:00:02]} 94. Re7 {[%emt 0:00:03]} Kf6 {[%emt 0:00:02]} 95. Re8 {[%emt 0:00:02]} Kf5 {[%emt 0:00:01]} 96. Re7 {[%emt 0:00:03]} Kf6 {[%emt 0:00:00]} 97. Re4 {[%emt 0:00:03]} Kg5 {[%emt 0:00:01]} 98. Re8 {[%emt 0:00:01]} Kf6 {[%emt 0:00:01]} 99. Re4 {[%emt 0:00:02]} Kf5 {[%emt 0:00:01]} 100. Re8 {[%emt 0:00:01]} Kf6 {[%emt 0:00:01]} 101. Re4 {[%emt 0:00:01][%mdl 32768] A wild game.   Weighted Error Value: White=0.27 (precise) /Black=0.18 (very precise) . An unexpected result.} 1/2-1/2

[Event "ChessKid Cup Div-III 2023"]
[Site "Online"]
[Date "2023.05.23"]
[Round "3.2"]
[White "Lysyj, Igor"]
[Black "Harikrishna, Pentala"]
[Result "1/2-1/2"]
[ECO "E06"]
[WhiteElo "2606"]
[BlackElo "2704"]
[Annotator "TA"]
[PlyCount "149"]
[EventDate "2023.05.21"]
[EventType "k.o."]
[EventCountry "NET"]
[SourceTitle "playchess.com"]
[Source "ChessBase"]
[SourceQuality "1"]
[TimeControl "900+3"]

{[%evp 9,149,18,29,0,6,-5,10,15,12,1,10,0,0,8,8,7,2,6,0,10,14,0,34,10,14,-17,-14,-8,-18,-47,-59,-72,-71,-58,-54,-84,-93,-79,-68,-70,-20,-19,-17,-26,-29,-24,-26,-27,-29,-27,-3,-4,0,-40,0,0,0,0,0,-6,-7,-33,-26,-33,-33,-33,-33,-33,-33,-106,-109,-104,-62,-62,-64,-120,-71,-131,-105,-179,-158,-179,-179,-179,-165,-158,-158,-146,-122,-141,-84,-84,-84,-84,-64,-73,-68,-80,-80,-80,-81,-81,-88,-176,-176,-194,-80,-220,-95,-151,-39,-59,-8,-37,0,-40,-18,-33,0,0,0,0,0,-51,-8,-31,0,0,0,-8,0,0,0,0,0,0,0,0,0,0,0,0]} 1. d4 {[%emt 0:00:03]} Nf6 {[%emt 0:00:05]} 2. c4 {[%emt 0:00:02]} e6 {[%emt 0:00:01]} 3. Nf3 {[%emt 0:00:01]} d5 {[%emt 0:00:02]} 4. g3 {[%emt 0:00:01]} Be7 {[%emt 0:00:01]} 5. Bg2 {[%emt 0:00:02]} O-O {[%emt 0:00:01]} 6. Qb3 {[%emt 0:00:01] E06: Closed Catalan: Early deviations.} c5 {[%emt 0:00:03]} 7. cxd5 {[%emt 0:00:09]} Qxd5 {[%emt 0:00:02]} 8. dxc5 {[%emt 0:00:11]} Nc6 {[%emt 0:01:21]} 9. O-O {[%emt 0:00:23]} Bxc5 {[%emt 0:00:32]} 10. Nc3 {[%emt 0:00:05]} Qxb3 {[%emt 0:00:45]} 11. axb3 {[%emt 0:00:03]} e5 {[%emt 0:00:01]} 12. Na4 {[%emt 0:00:08]} Be7 {[%emt 0:00:02] [#]} 13. Nb6 $1 {[%emt 0:00:03]} Rb8 {[%emt 0:00:01]} ({Don't do} 13... axb6 14. Rxa8 Be6 15. Rxf8+ Bxf8 16. Bg5 $16) 14. Nxc8 {[%emt 0:00:02]} Rbxc8 {[%emt 0:00:01]} 15. Be3 {[%emt 0:00:02] [#]} a6 $146 {[%emt 0:00:22]} ({Predecessor:} 15... b6 16. Nh4 Na5 17. Nf5 Rfe8 18. Bg5 Bf8 19. Bxf6 gxf6 20. Ra4 Red8 21. Rg4+ Kh8 {½-½ Misyura,I (1967)-Munshi,A (2133) Wch U14 Porto Carras 2018 (10.31)}) 16. Rfd1 {[%emt 0:00:28]} (16. Nd2 $5 {[%cal Rf1c1]}) 16... Rfd8 {[%emt 0:01:00][%cal Bf8d8,Bd8d5,Bd5b5,Bb5b3][%mdl 32]} 17. Bb6 {[%emt 0:00:11] This pair of bishops is nice.} Rd5 {[%emt 0:00:09]} 18. Rdc1 {[%emt 0:03:59]} Rb5 {[%emt 0:00:31]} 19. Be3 {[%emt 0:00:01]} ({Don't play} 19. Bh3 Re8 20. Be3 Rxb3 $17) 19... Rd8 {[%emt 0:00:21]} 20. Rd1 {[%emt 0:04:14]} Rxd1+ {[%emt 0:00:54]} 21. Rxd1 {[%emt 0:00:03]} Rxb3 {[%emt 0:00:01]} 22. Bc1 {[%emt 0:00:02]} Rb4 {[%emt 0:00:47]} 23. Kf1 {[%emt 0:00:04]} g6 {[%emt 0:01:49]} 24. Ne1 {[%emt 0:00:08]} Nd4 {[%emt 0:00:33]} (24... Rb6 $15) 25. Nd3 $11 {[%emt 0:00:23][%csl LRb4,LRe5]} Rb5 {[%emt 0:00:01]} 26. Nxe5 {[%emt 0:00:29][%mdl 64] Discovered Attack} Nxe2 {[%emt 0:00:07]} 27. Nxg6 {[%emt 0:00:24]} Nxg3+ {[%emt 0:00:02]} ({Much less strong is} 27... fxg6 28. Kxe2 Kf7 29. Rd3 $14) 28. hxg3 {[%emt 0:00:07]} hxg6 {[%emt 0:00:01]} 29. Rd3 {[%emt 0:00:09]} a5 {[%emt 0:00:46]} 30. b3 {[%emt 0:00:05]} b6 {[%emt 0:01:00]} 31. Bd2 {[%emt 0:00:29]} Rf5 {[%emt 0:00:21]} 32. Bf3 {[%emt 0:00:17]} g5 {[%emt 0:01:55]} 33. g4 {[%emt 0:00:34]} Re5 {[%emt 0:00:12]} 34. Kg2 {[%emt 0:01:08]} Kf8 {[%emt 0:00:32]} 35. Bc3 {[%emt 0:00:22]} Re6 {[%emt 0:00:21]} 36. Bd2 {[%emt 0:00:04]} Ne4 {[%emt 0:00:04]} 37. Be3 {[%emt 0:01:15][%cal Oe3b6]} Bc5 {[%emt 0:00:46]} 38. Bxe4 {[%emt 0:00:02]} Rxe4 $15 {[%emt 0:00:01][%mdl 4096] Endgame KRB-KRB} 39. Kf3 {[%emt 0:00:01]} (39. Bxc5+ $1 $15 bxc5 40. Rd5) 39... Re5 $17 {[%emt 0:00:15]} 40. Bd2 {[%emt 0:00:01]} Be7 {[%emt 0:00:21]} 41. Bc3 {[%emt 0:00:11]} Rb5 {[%emt 0:00:02]} 42. Bd2 {[%emt 0:00:03]} (42. Ke4 $15) 42... f6 {[%emt 0:00:04]} ({Better is} 42... Bb4 {Strongly threatening ...Bxd2.} 43. Bc1 f6) 43. Be3 {[%emt 0:00:08]} (43. Ke2 $142) 43... Kf7 {[%emt 0:00:08]} 44. Bd2 {[%emt 0:00:15]} (44. Bc1 $17) 44... Ke6 {[%emt 0:00:06]} 45. Be3 {[%emt 0:00:01]} Bc5 {[%emt 0:00:03]} 46. Bd2 {[%emt 0:00:02]} Bd6 {[%emt 0:00:13]} 47. Be3 {[%emt 0:00:01]} Be5 {[%emt 0:00:04]} 48. Ke2 {[%emt 0:00:02]} Bf4 {[%emt 0:00:12]} 49. Bd4 {[%emt 0:00:05] Against Re5+} f5 {[%emt 0:00:10]} ({Black should try} 49... Rb4 50. f3 Rb5) 50. gxf5+ {[%emt 0:00:02]} Kxf5 {[%emt 0:00:00]} 51. f3 {[%emt 0:00:01]} Rb4 {[%emt 0:00:03]} 52. Bf2 {[%emt 0:00:03]} Ke6 {[%emt 0:00:04]} 53. Be1 {[%emt 0:00:02]} Rb5 {[%emt 0:00:01]} 54. Bf2 {[%emt 0:00:01]} Re5+ {[%emt 0:00:03]} 55. Kf1 {[%emt 0:00:09]} b5 $1 {[%emt 0:00:01]} 56. Rc3 {[%emt 0:00:01]} (56. Be1 $17) 56... Rd5 $19 {[%emt 0:00:09]} 57. Rc6+ {[%emt 0:00:03] [#]} Kf5 {[%emt 0:00:04]} (57... Kd7 $1 $19 {[%cal Rd7c6] has better winning chances.} 58. Ra6 Rd1+ 59. Kg2 Rd2) 58. Rb6 {[%emt 0:00:08] [#]} (58. Ke2 $17 {keeps fighting.}) 58... Bd2 {[%emt 0:00:08]} (58... g4 $1 $19 {[%cal Rg4f3]} 59. fxg4+ Kxg4) 59. Ke2 {[%emt 0:00:03]} (59. Rb7 $142) 59... Bc3 {[%emt 0:00:02]} (59... a4 $17 60. bxa4 bxa4) 60. Be3 {[%emt 0:00:03]} Bb4 {[%emt 0:00:05]} ({Black should play} 60... Be5 $15) 61. Rb7 {[%emt 0:00:04]} Bc3 {[%emt 0:00:05]} (61... Re5 $5 {[%cal Rb4c5]} 62. Kd3 Bd6 63. Rf7+ Ke6 $17) 62. Rf7+ {[%emt 0:00:02]} Ke6 {[%emt 0:00:02]} 63. Rb7 {[%emt 0:00:01]} Re5 {[%emt 0:00:01] White must now prevent ...Bd4.} 64. Kd3 {[%emt 0:00:02] Inhibits Bd4.} Bb4 {[%emt 0:00:01]} 65. Bd4 {[%emt 0:00:05]} Rf5 {[%emt 0:00:02]} 66. Ke2 {[%emt 0:00:02]} (66. Rb6+ $11 Kf7 67. Ke4 Rf4+ 68. Ke3) 66... Kd6 {[%emt 0:00:02]} 67. Be3 {[%emt 0:00:02]} Kc6 {[%emt 0:00:02]} (67... Re5 $5 {[%cal Rb4c5]} 68. Kd3 Bc5 $17) 68. Rb6+ {[%emt 0:00:03] The position is equal.} Kd7 {[%emt 0:00:03] ...Re5 is the strong threat.} 69. Rb7+ {[%emt 0:00:02]} Kc6 {[%emt 0:00:03]} 70. Rb6+ {[%emt 0:00:01]} Kc7 {[%emt 0:00:00] ...Re5 would be deadly.} 71. Rg6 {[%emt 0:00:03]} a4 {[%emt 0:00:01]} 72. bxa4 {[%emt 0:00:01]} bxa4 {[%emt 0:00:00]} 73. Rxg5 {[%emt 0:00:01]} Rxg5 {[%emt 0:00:08]} 74. Bxg5 {[%emt 0:00:02]} a3 {[%emt 0:00:00] Hoping for ...Bc3.} 75. Bc1 {[%emt 0:00:06] Weighted Error Value: White=0.16 (very precise) /Black=0.18 (very precise)} 1/2-1/2

[Event "ChessKid Cup Div-III 2023"]
[Site "Online"]
[Date "2023.05.23"]
[Round "3.2"]
[White "Bernadskiy, Vitaliy"]
[Black "Antipov, Mikhail Al."]
[Result "1-0"]
[ECO "B22"]
[WhiteElo "2592"]
[BlackElo "2588"]
[Annotator "TA"]
[PlyCount "115"]
[EventDate "2023.05.21"]
[EventType "k.o."]
[EventCountry "NET"]
[SourceTitle "playchess.com"]
[Source "ChessBase"]
[SourceQuality "1"]
[TimeControl "900+3"]

{[%evp 17,115,38,54,48,57,66,85,78,123,100,130,107,162,148,164,157,201,186,195,162,245,261,262,128,164,172,239,245,247,212,192,107,108,115,122,114,112,56,56,71,70,63,56,63,91,29,28,20,98,98,110,108,109,109,144,128,113,87,173,140,151,137,210,143,162,84,431,83,302,227,450,449,445,390,318,0,0,0,800,758,750,735,695,727,746,739,708,608,468,0,729,733,1579,1431,29973,29974,29970,29973,29986,29987]} 1. e4 {[%emt 0:00:03]} c5 {[%emt 0:00:05]} 2. Nf3 {[%emt 0:00:06]} e6 {[%emt 0:00:00]} 3. c3 {[%emt 0:00:01]} d5 {[%emt 0:00:08]} 4. exd5 {[%emt 0:00:01]} Qxd5 {[%emt 0:00:00]} 5. d4 {[%emt 0:00:02]} Nf6 {[%emt 0:00:01]} 6. Be2 {[%emt 0:00:10]} Be7 {[%emt 0:00:04]} 7. O-O {[%emt 0:00:03]} O-O {[%emt 0:00:01]} 8. Na3 {[%emt 0:00:06]} a6 {[%emt 0:00:17]} 9. Nc4 {[%emt 0:00:05]} Nbd7 {[%emt 0:00:01]} 10. Nfe5 {[%emt 0:00:26] B22: Sicilian: 2 c3.} Nxe5 {[%emt 0:02:47]} 11. dxe5 {[%emt 0:00:09]} Nd7 {[%emt 0:00:11] [#]} 12. Bf4 $146 {[%emt 0:00:06] White is better.} ({Predecessor:} 12. Qc2 Qc6 13. Bf3 Qc7 14. Bf4 Rb8 15. Rad1 b5 16. Nd6 Rb6 17. Nxc8 Rxc8 18. Rfe1 {1-0 Schuster,G (1997)-Wimmer,T (1918) Stuttgart-chA op 2015 (2)}) 12... Qe4 {[%emt 0:01:24]} 13. Bg3 {[%emt 0:00:07]} Rd8 {[%emt 0:00:14][%cal Od7e5]} 14. Nd6 {[%emt 0:00:35]} Bxd6 {[%emt 0:03:37]} (14... Qc6 $16) 15. Bf3 $18 {[%emt 0:00:15]} Qc4 {[%emt 0:00:52]} 16. Qxd6 {[%emt 0:00:06]} Re8 {[%emt 0:00:16]} 17. Rfd1 {[%emt 0:00:08]} Qb5 {[%emt 0:00:35] Black is weak on the dark squares} 18. b3 {[%emt 0:00:13]} Nf8 {[%emt 0:00:16]} (18... Qa5 $142 19. c4 Qa3) 19. c4 {[%emt 0:00:07]} Qa5 {[%emt 0:00:03]} 20. Qd2 {[%emt 0:00:11]} (20. Bf4 $18 {is more deadly.}) 20... Qxd2 {[%emt 0:00:27]} 21. Rxd2 {[%emt 0:00:00]} Rb8 {[%emt 0:00:01]} (21... a5 $142 22. h4 a4) 22. Rad1 {[%emt 0:00:16]} Ng6 {[%emt 0:00:06]} 23. h4 {[%emt 0:00:13]} Ne7 {[%emt 0:00:29]} 24. Be4 {[%emt 0:00:18]} (24. Rd8 Kf8 25. Bf4 Nf5) (24. Bf4 $18) 24... b5 $16 {[%emt 0:00:43]} 25. cxb5 {[%emt 0:00:21] White has more active pieces. The black rooks are badly placed.} axb5 {[%emt 0:00:16]} 26. Rd8 {[%emt 0:00:49][%cal Rd8e8]} Kf8 {[%emt 0:00:19] [#]} 27. Rxe8+ {[%emt 0:00:22]} ({White should play} 27. f3 $1 $16 {aiming for Bf2.} Bb7 28. Rxb8 {[%mdl 64] Remove Defender} Rxb8 29. Bxb7 (29. Bxh7 g6 $14)) 27... Kxe8 $14 {[%emt 0:00:00]} 28. Rc1 {[%emt 0:00:01]} Bb7 {[%emt 0:00:19]} 29. Bxb7 {[%emt 0:00:02]} Rxb7 {[%emt 0:00:01]} 30. Rxc5 {[%emt 0:00:01][%mdl 4096] Endgame KRB-KRN} Nd5 {[%emt 0:02:32]} 31. a3 {[%emt 0:00:30]} (31. Rc8+ $16 Ke7 32. h5) 31... h5 $11 {[%emt 0:00:09]} 32. f3 {[%emt 0:00:43]} Rb8 {[%emt 0:00:04]} (32... Ra7 $11 {keeps the balance.}) 33. Be1 $16 {[%emt 0:00:05]} Kf8 {[%emt 0:00:01]} 34. Bd2 {[%emt 0:00:15]} Kg8 {[%emt 0:00:01]} 35. Kf2 {[%emt 0:00:01]} Kh7 {[%emt 0:00:02]} 36. g4 {[%emt 0:00:12]} Kg6 {[%emt 0:00:01]} 37. Ke2 {[%emt 0:00:06]} Rb7 {[%emt 0:00:09]} (37... Ra8 $16) 38. Kd3 {[%emt 0:00:07]} Ra7 {[%emt 0:00:06]} 39. Bb4 {[%emt 0:00:09]} Nxb4+ {[%emt 0:00:11]} (39... Rb7 $16 40. Bd2 Ra7) 40. axb4 {[%emt 0:00:00] KR-KR} Rb7 {[%emt 0:00:01]} 41. Ke4 {[%emt 0:00:05]} (41. Kd4 $18) 41... Rb8 $2 {[%emt 0:00:08][%mdl 8192]} (41... hxg4 $16 {is more resistant.} 42. fxg4 Kh6) 42. Ke3 $2 {[%emt 0:00:02]} (42. g5 $18 {is the precise move to win. Hoping for Rc6.} Rb7 43. Rc6) 42... Rh8 $2 {[%emt 0:00:06]} (42... hxg4 $16 {is a better defense.} 43. fxg4 Rh8) 43. g5 $18 {[%emt 0:00:19]} ({Weaker is} 43. Rxb5 hxg4 44. fxg4 Rxh4 $11) 43... Rb8 {[%emt 0:00:02]} (43... Ra8 {was called for.} 44. Rxb5 Ra3) 44. Ke4 {[%emt 0:00:01]} Rb7 {[%emt 0:00:01]} 45. f4 {[%emt 0:00:04]} Rb6 {[%emt 0:00:05]} 46. Kf3 $2 {[%emt 0:00:15]} (46. Rc7 $18) 46... Rb7 $1 $11 {[%emt 0:00:04]} 47. Ke4 {[%emt 0:00:02] Black must now prevent Rc6.} (47. Rc6 $5 Kf5 $8 48. g6 $11) 47... Rd7 $2 {[%emt 0:00:03][%mdl 8192]} (47... Rb6 $11 48. f5+ exf5+ 49. Kf4 f6) 48. Rc6 $18 {[%emt 0:00:23]} Kh7 {[%emt 0:00:01] [#]} 49. g6+ $1 {[%emt 0:00:11][%mdl 576] Decoy} Kxg6 {[%emt 0:00:05]} 50. f5+ {[%emt 0:00:01]} Kh7 {[%emt 0:00:00]} 51. fxe6 {[%emt 0:00:01]} fxe6 {[%emt 0:00:00]} 52. Rxe6 {[%emt 0:00:01]} Rd1 {[%emt 0:00:01]} 53. Kf5 $2 {[%emt 0:00:26]} ({Better is} 53. Rb6 $18) 53... Rh1 $2 {[%emt 0:00:08][%mdl 8192]} (53... Rf1+ $11 54. Ke4 Rh1) 54. Rb6 {[%emt 0:00:07]} Rxh4 {[%emt 0:00:02] [#]} 55. e6 $1 {[%emt 0:00:04][%cal Be5e6,Be6e7][%mdl 32] White wants to mate with e7.} ({Less strong is} 55. Rxb5 g6+ 56. Ke6 Rd4 $16) 55... g6+ {[%emt 0:00:05]} 56. Ke5 {[%emt 0:00:12] White mates.} Rh1 {[%emt 0:00:04]} 57. e7 {[%emt 0:00:05]} Kg7 {[%emt 0:00:05]} 58. Re6 {[%emt 0:00:04] Weighted Error Value: White=0.48/Black=0.60} ({Not} 58. e8=R Re1+ 59. Kf4 Rxe8 60. Rxb5 Kh6 $17) 1-0